[Event "Late-Titled-Tuesday-Blitz-March-26-2024"]
[Site "Chess.com"]
[Date "2024.03.26"]
[Round "11"]
[White "Boundless_Strike"]
[Black "AnthonyWirig"]
[Result "1/2-1/2"]
[WhiteElo "2630"]
[BlackElo "2807"]
[TimeControl "180+1"]
[EndTime "16:06:22 PDT"]
[Termination "Game drawn by repetition"]

1. d4 {[%clk 0:03:00.9]} 1... Nf6 {[%clk 0:02:54.1]} 2. Nc3 {[%clk 0:03:00.6]}
2... d5 {[%clk 0:02:54]} 3. e4 {[%clk 0:03:01.4]} 3... Nxe4 {[%clk 0:02:53.8]}
4. Nxe4 {[%clk 0:03:01.5]} 4... dxe4 {[%clk 0:02:54.7]} 5. Be3 {[%clk
0:03:02.1]} 5... c6 {[%clk 0:02:51.2]} 6. f3 {[%clk 0:03:00.7]} 6... e5 {[%clk
0:02:51.1]} 7. dxe5 {[%clk 0:02:36.7]} 7... Qxd1+ {[%clk 0:02:40.8]} 8. Rxd1
{[%clk 0:02:34.3]} 8... Bf5 {[%clk 0:02:41.2]} 9. g4 {[%clk 0:02:10]} 9... Be6
{[%clk 0:02:37.4]} 10. Bg2 {[%clk 0:02:04.6]} 10... exf3 {[%clk 0:02:28.4]} 11.
Nxf3 {[%clk 0:02:05.5]} 11... Nd7 {[%clk 0:02:23.7]} 12. O-O {[%clk 0:02:01.5]}
12... Bc5 {[%clk 0:02:10.8]} 13. Bxc5 {[%clk 0:01:54.2]} 13... Nxc5 {[%clk
0:02:11.7]} 14. Ng5 {[%clk 0:01:38.4]} 14... Ke7 {[%clk 0:02:10.5]} 15. b4
{[%clk 0:01:26.9]} 15... Na4 {[%clk 0:02:08.4]} 16. Nxe6 {[%clk 0:01:16.3]}
16... fxe6 {[%clk 0:02:07.8]} 17. c4 {[%clk 0:01:13.5]} 17... Rad8 {[%clk
0:02:01.5]} 18. c5 {[%clk 0:01:08.4]} 18... Rxd1 {[%clk 0:01:55.4]} 19. Rxd1
{[%clk 0:01:09.3]} 19... Nc3 {[%clk 0:01:55.8]} 20. Rd2 {[%clk 0:01:02.9]} 20...
Rd8 {[%clk 0:01:48.7]} 21. Rxd8 {[%clk 0:00:40.5]} 21... Kxd8 {[%clk 0:01:49.6]}
22. a3 {[%clk 0:00:40.8]} 22... Nb1 {[%clk 0:01:40.8]} 23. Be4 {[%clk
0:00:40.5]} 23... Nxa3 {[%clk 0:01:34.8]} 24. Bxh7 {[%clk 0:00:40.4]} 24... g5
{[%clk 0:01:34.1]} 25. h4 {[%clk 0:00:35.7]} 25... gxh4 {[%clk 0:01:32.4]} 26.
g5 {[%clk 0:00:36.2]} 26... Ke7 {[%clk 0:01:30.3]} 27. Kh2 {[%clk 0:00:36.6]}
27... Nc4 {[%clk 0:01:27.4]} 28. Kh3 {[%clk 0:00:30.2]} 28... Nxe5 {[%clk
0:01:26.7]} 29. Kxh4 {[%clk 0:00:30.7]} 29... Kf7 {[%clk 0:01:23.5]} 30. Be4
{[%clk 0:00:25.7]} 30... Nd7 {[%clk 0:01:14.7]} 31. Kh5 {[%clk 0:00:25.1]} 31...
Kg7 {[%clk 0:01:14.8]} 32. Bf3 {[%clk 0:00:20.6]} 32... a5 {[%clk 0:01:10.9]}
33. bxa5 {[%clk 0:00:14.8]} 33... Nxc5 {[%clk 0:01:11.2]} 34. Kg4 {[%clk
0:00:14.4]} 34... Nb3 {[%clk 0:01:01]} 35. Bxc6 {[%clk 0:00:12.1]} 35... Nxa5
{[%clk 0:00:54]} 36. Bd7 {[%clk 0:00:12.5]} 36... Kf7 {[%clk 0:00:50]} 37. g6+
{[%clk 0:00:12.2]} 37... Kxg6 {[%clk 0:00:48]} 38. Bxe6 {[%clk 0:00:12.5]} 38...
Kf6 {[%clk 0:00:48.3]} 39. Bc8 {[%clk 0:00:12.6]} 39... b6 {[%clk 0:00:48.4]}
40. Kf4 {[%clk 0:00:12.7]} 40... Ke7 {[%clk 0:00:47.4]} 41. Ke5 {[%clk 0:00:11]}
41... Kd8 {[%clk 0:00:46.6]} 42. Be6 {[%clk 0:00:10.5]} 42... Kc7 {[%clk
0:00:46.4]} 43. Bd5 {[%clk 0:00:08.7]} 43... Nc6+ {[%clk 0:00:45.2]} 44. Ke4
{[%clk 0:00:08.5]} 44... Kd6 {[%clk 0:00:43.8]} 45. Bg8 {[%clk 0:00:05]} 45...
Kc5 {[%clk 0:00:43.6]} 46. Kd3 {[%clk 0:00:04.4]} 46... Kb4 {[%clk 0:00:43.3]}
47. Kc2 {[%clk 0:00:02.7]} 47... Ne7 {[%clk 0:00:41.7]} 48. Bf7 {[%clk
0:00:02.2]} 48... Nf5 {[%clk 0:00:42]} 49. Kd3 {[%clk 0:00:02.1]} 49... Nd6
{[%clk 0:00:42.1]} 50. Be6 {[%clk 0:00:02.3]} 50... Ka3 {[%clk 0:00:42]} 51. Bd7
{[%clk 0:00:02.7]} 51... Kb4 {[%clk 0:00:42.3]} 52. Kd4 {[%clk 0:00:03.1]} 52...
Nb5+ {[%clk 0:00:40.2]} 53. Kd3 {[%clk 0:00:03.1]} 53... Kc5 {[%clk 0:00:39.3]}
54. Be8 {[%clk 0:00:03.2]} 54... Nd6 {[%clk 0:00:39.3]} 55. Bd7 {[%clk
0:00:03.7]} 55... Nb7 {[%clk 0:00:39.3]} 56. Be8 {[%clk 0:00:03.8]} 56... Kb4
{[%clk 0:00:39.2]} 57. Kd2 {[%clk 0:00:03.9]} 57... Nc5 {[%clk 0:00:39.1]} 58.
Ke3 {[%clk 0:00:03.7]} 58... Ne6 {[%clk 0:00:39.2]} 59. Bd7 {[%clk 0:00:03.8]}
59... Nc7 {[%clk 0:00:39.3]} 60. Bc6 {[%clk 0:00:04]} 60... Kc5 {[%clk
0:00:39.6]} 61. Bd7 {[%clk 0:00:04.5]} 61... Nd5+ {[%clk 0:00:39.2]} 62. Kd2
{[%clk 0:00:04.5]} 62... Nb4 {[%clk 0:00:39.5]} 63. Be8 {[%clk 0:00:04.4]} 63...
Nc6 {[%clk 0:00:36.4]} 64. Kc3 {[%clk 0:00:04.8]} 64... Nd4 {[%clk 0:00:34.6]}
65. Kd3 {[%clk 0:00:04.9]} 65... Ne6 {[%clk 0:00:34.5]} 66. Kc3 {[%clk
0:00:04.7]} 66... Nf4 {[%clk 0:00:34.8]} 67. Kb2 {[%clk 0:00:04.3]} 67... Kb4
{[%clk 0:00:33.7]} 68. Kc2 {[%clk 0:00:03.8]} 68... Ne6 {[%clk 0:00:33.2]} 69.
Bd7 {[%clk 0:00:04.1]} 69... Nc7 {[%clk 0:00:34.1]} 70. Bc6 {[%clk 0:00:04]}
70... Kc5 {[%clk 0:00:34]} 71. Ba4 {[%clk 0:00:04.4]} 71... Na6 {[%clk
0:00:32.8]} 72. Kd2 {[%clk 0:00:04.1]} 72... Nc7 {[%clk 0:00:31.8]} 73. Bd7
{[%clk 0:00:03.9]} 73... Nd5 {[%clk 0:00:31.1]} 74. Be8 {[%clk 0:00:03.8]} 74...
Kd4 {[%clk 0:00:30.2]} 75. Ba4 {[%clk 0:00:03.5]} 75... Kc4 {[%clk 0:00:30.1]}
76. Be8 {[%clk 0:00:03.7]} 76... Nc3 {[%clk 0:00:30]} 77. Kc2 {[%clk 0:00:03.6]}
77... Nd5 {[%clk 0:00:27.5]} 78. Bd7 {[%clk 0:00:02.5]} 78... Nb4+ {[%clk
0:00:26.6]} 79. Kb2 {[%clk 0:00:02.5]} 79... Kc5 {[%clk 0:00:26.7]} 80. Be8
{[%clk 0:00:02.6]} 80... Nc6 {[%clk 0:00:27.6]} 81. Kc3 {[%clk 0:00:02.9]} 81...
Na7 {[%clk 0:00:27.2]} 82. Bd7 {[%clk 0:00:02.9]} 82... Nb5+ {[%clk 0:00:27.6]}
83. Bxb5 {[%clk 0:00:03.3]} 83... Kxb5 {[%clk 0:00:27.7]} 84. Kb3 {[%clk
0:00:03.9]} 84... Ka5 {[%clk 0:00:28.6]} 85. Ka3 {[%clk 0:00:04.4]} 85... Kb5
{[%clk 0:00:29]} 86. Kb3 {[%clk 0:00:04.8]} 86... Kc5 {[%clk 0:00:29.9]} 87. Kc3
{[%clk 0:00:05.2]} 87... Kc6 {[%clk 0:00:30.8]} 88. Kc4 {[%clk 0:00:05.5]} 88...
Kb7 {[%clk 0:00:31.7]} 89. Kb5 {[%clk 0:00:05.9]} 89... Ka7 {[%clk 0:00:32.6]}
90. Kb4 {[%clk 0:00:06.5]} 90... Ka6 {[%clk 0:00:33.5]} 91. Ka4 {[%clk
0:00:07.1]} 91... b5+ {[%clk 0:00:34.4]} 92. Kb4 {[%clk 0:00:07.6]} 92... Kb6
{[%clk 0:00:35.3]} 93. Kb3 {[%clk 0:00:08.3]} 93... Kc5 {[%clk 0:00:36.2]} 94.
Kc3 {[%clk 0:00:08.9]} 94... Kc6 {[%clk 0:00:37.1]} 95. Kb4 {[%clk 0:00:09.4]}
95... Kb6 {[%clk 0:00:38]} 96. Kb3 {[%clk 0:00:10]} 96... Ka5 {[%clk 0:00:38.9]}
97. Ka3 {[%clk 0:00:10.6]} 97... b4+ {[%clk 0:00:39.8]} 98. Kb3 {[%clk 0:00:11]}
98... Kb5 {[%clk 0:00:40.7]} 99. Kb2 {[%clk 0:00:11.6]} 99... Kc4 {[%clk
0:00:41.5]} 100. Kc2 {[%clk 0:00:12.2]} 100... Kc5 {[%clk 0:00:42.4]} 101. Kb3
{[%clk 0:00:12.3]} 101... Kb5 {[%clk 0:00:43.3]} 102. Kb2 {[%clk 0:00:12.6]}
102... Ka4 {[%clk 0:00:44.2]} 103. Ka2 {[%clk 0:00:13.1]} 103... b3+ {[%clk
0:00:45.1]} 104. Kb2 {[%clk 0:00:13.5]} 104... Kb4 {[%clk 0:00:46]} 105. Kb1
{[%clk 0:00:14.1]} 105... Kc4 {[%clk 0:00:46.7]} 106. Kb2 {[%clk 0:00:14.6]}
106... Kb4 {[%clk 0:00:47.3]} 107. Kb1 {[%clk 0:00:15.2]} 107... Ka4 {[%clk
0:00:48.1]} 108. Kb2 {[%clk 0:00:15.7]} 108... Kb4 {[%clk 0:00:47.9]} 1/2-1/2

[Event "Late-Titled-Tuesday-Blitz-March-26-2024"]
[Site "Chess.com"]
[Date "2024.03.26"]
[Round "11"]
[White "kingofthenil"]
[Black "Msb2"]
[Result "1/2-1/2"]
[WhiteElo "2800"]
[BlackElo "3013"]
[TimeControl "180+1"]
[EndTime "16:06:58 PDT"]
[Termination "Game drawn by 50-move rule"]

1. Nf3 {[%clk 0:03:00.9]} 1... d5 {[%clk 0:03:00.2]} 2. e3 {[%clk 0:03:01.1]}
2... Nf6 {[%clk 0:03:00.2]} 3. c4 {[%clk 0:03:02]} 3... e6 {[%clk 0:03:00.6]} 4.
b3 {[%clk 0:03:02.6]} 4... Bd6 {[%clk 0:03:01.3]} 5. Bb2 {[%clk 0:03:03.3]} 5...
O-O {[%clk 0:03:02]} 6. Nc3 {[%clk 0:03:03]} 6... c5 {[%clk 0:03:02.4]} 7. cxd5
{[%clk 0:02:48.7]} 7... exd5 {[%clk 0:03:03.3]} 8. d4 {[%clk 0:02:48.9]} 8...
Nc6 {[%clk 0:03:03.9]} 9. Be2 {[%clk 0:02:36.5]} 9... cxd4 {[%clk 0:03:02.3]}
10. Nxd4 {[%clk 0:02:36.5]} 10... Nxd4 {[%clk 0:03:02.1]} 11. Qxd4 {[%clk
0:02:36.6]} 11... Re8 {[%clk 0:03:02.9]} 12. O-O {[%clk 0:02:36.2]} 12... Be5
{[%clk 0:03:03.3]} 13. Qd2 {[%clk 0:02:07.9]} 13... d4 {[%clk 0:03:02]} 14. exd4
{[%clk 0:02:05.5]} 14... Qxd4 {[%clk 0:03:02.9]} 15. Qxd4 {[%clk 0:02:04.2]}
15... Bxd4 {[%clk 0:03:03.8]} 16. Bf3 {[%clk 0:02:00.3]} 16... Rd8 {[%clk
0:03:04.3]} 17. h3 {[%clk 0:01:50.9]} 17... Rb8 {[%clk 0:02:59.1]} 18. Rfd1
{[%clk 0:01:34.8]} 18... Be6 {[%clk 0:02:47.9]} 19. Rd2 {[%clk 0:01:31]} 19...
Be5 {[%clk 0:02:42.4]} 20. Rad1 {[%clk 0:01:28]} 20... Rxd2 {[%clk 0:02:42.2]}
21. Rxd2 {[%clk 0:01:28.9]} 21... h6 {[%clk 0:02:36.9]} 22. Nb5 {[%clk
0:01:20.5]} 22... Bxb2 {[%clk 0:02:36.1]} 23. Rxb2 {[%clk 0:01:21.4]} 23... a6
{[%clk 0:02:33.8]} 24. Nd6 {[%clk 0:01:16.2]} 24... b5 {[%clk 0:02:28.9]} 25.
Rc2 {[%clk 0:01:16.6]} 25... Nd5 {[%clk 0:02:21.5]} 26. Rc5 {[%clk 0:01:07.3]}
26... Nb4 {[%clk 0:02:17.2]} 27. a3 {[%clk 0:01:07.2]} 27... Nd3 {[%clk
0:02:17.1]} 28. Rc3 {[%clk 0:00:58.1]} 28... Ne5 {[%clk 0:02:17.2]} 29. Bb7
{[%clk 0:00:52.8]} 29... Rd8 {[%clk 0:02:10.6]} 30. Ne4 {[%clk 0:00:46.6]} 30...
a5 {[%clk 0:02:10.9]} 31. Rc5 {[%clk 0:00:43.2]} 31... Rb8 {[%clk 0:01:24.9]}
32. Rxe5 {[%clk 0:00:23.3]} 32... Rxb7 {[%clk 0:01:24.8]} 33. Nc5 {[%clk
0:00:24]} 33... Rb6 {[%clk 0:01:18.2]} 34. Nxe6 {[%clk 0:00:24]} 34... fxe6
{[%clk 0:01:19.1]} 35. b4 {[%clk 0:00:24.4]} 35... a4 {[%clk 0:01:15.4]} 36. Kf1
{[%clk 0:00:16.8]} 36... Rc6 {[%clk 0:01:10.6]} 37. Rxb5 {[%clk 0:00:16.9]}
37... Rc3 {[%clk 0:01:10.9]} 38. Ra5 {[%clk 0:00:17.4]} 38... Rxa3 {[%clk
0:01:11.1]} 39. b5 {[%clk 0:00:18.1]} 39... Kf7 {[%clk 0:01:09.7]} 40. b6 {[%clk
0:00:18]} 40... Rb3 {[%clk 0:01:10.4]} 41. Rxa4 {[%clk 0:00:17.9]} 41... Rb1+
{[%clk 0:01:11]} 42. Ke2 {[%clk 0:00:18]} 42... Rxb6 {[%clk 0:01:11.9]} 43. Ra7+
{[%clk 0:00:15.5]} 43... Kf6 {[%clk 0:01:12.5]} 44. Kf3 {[%clk 0:00:15.4]} 44...
Rb3+ {[%clk 0:01:12.8]} 45. Ke2 {[%clk 0:00:16]} 45... Rc3 {[%clk 0:01:12.7]}
46. Rd7 {[%clk 0:00:14.2]} 46... Ra3 {[%clk 0:01:12.9]} 47. Rd3 {[%clk
0:00:13.9]} 47... Ra2+ {[%clk 0:01:13.6]} 48. Rd2 {[%clk 0:00:14.4]} 48... Ra5
{[%clk 0:01:14.5]} 49. Kf3 {[%clk 0:00:12.8]} 49... g5 {[%clk 0:01:14.2]} 50. g4
{[%clk 0:00:09.9]} 50... Ra3+ {[%clk 0:01:11.7]} 51. Kg2 {[%clk 0:00:10.5]}
51... Ra4 {[%clk 0:01:12.2]} 52. Rd3 {[%clk 0:00:09.5]} 52... Ra6 {[%clk
0:01:12.2]} 53. Kg3 {[%clk 0:00:09.9]} 53... Kg6 {[%clk 0:01:12.7]} 54. Re3
{[%clk 0:00:08.5]} 54... h5 {[%clk 0:01:11.6]} 55. gxh5+ {[%clk 0:00:08.5]}
55... Kxh5 {[%clk 0:01:12.5]} 56. f4 {[%clk 0:00:07.1]} 56... gxf4+ {[%clk
0:01:09.1]} 57. Kxf4 {[%clk 0:00:08]} 57... Kg6 {[%clk 0:01:09.8]} 58. Ke5
{[%clk 0:00:06.8]} 58... Kf7 {[%clk 0:01:10.3]} 59. Rb3 {[%clk 0:00:05.7]} 59...
Ra5+ {[%clk 0:01:10.5]} 60. Kf4 {[%clk 0:00:06.2]} 60... Kf6 {[%clk 0:01:10.5]}
61. Kg3 {[%clk 0:00:03.6]} 61... e5 {[%clk 0:01:09.3]} 62. Rf3+ {[%clk
0:00:03.8]} 62... Ke6 {[%clk 0:01:08.8]} 63. h4 {[%clk 0:00:04.2]} 63... e4
{[%clk 0:01:08.7]} 64. Rf8 {[%clk 0:00:04.5]} 64... Ra1 {[%clk 0:01:05.1]} 65.
Kf2 {[%clk 0:00:03.9]} 65... Ra3 {[%clk 0:00:39.3]} 66. Ke2 {[%clk 0:00:03.6]}
66... Rh3 {[%clk 0:00:37.3]} 67. Re8+ {[%clk 0:00:03.8]} 67... Kd5 {[%clk
0:00:36.7]} 68. Rd8+ {[%clk 0:00:04.1]} 68... Kc5 {[%clk 0:00:37.3]} 69. Rc8+
{[%clk 0:00:03.9]} 69... Kd6 {[%clk 0:00:37.9]} 70. Rd8+ {[%clk 0:00:03.3]}
70... Kc6 {[%clk 0:00:34.4]} 71. Re8 {[%clk 0:00:03.2]} 71... Rxh4 {[%clk
0:00:34.5]} 72. Ke3 {[%clk 0:00:03.3]} 72... Kd5 {[%clk 0:00:35.2]} 73. Rd8+
{[%clk 0:00:03.9]} 73... Kc5 {[%clk 0:00:35.3]} 74. Rc8+ {[%clk 0:00:03.9]}
74... Kd6 {[%clk 0:00:35.2]} 75. Rd8+ {[%clk 0:00:04.4]} 75... Kc6 {[%clk
0:00:32.2]} 76. Rc8+ {[%clk 0:00:03.7]} 76... Kd7 {[%clk 0:00:32.2]} 77. Rc4
{[%clk 0:00:04.2]} 77... Kd6 {[%clk 0:00:30.8]} 78. Rxe4 {[%clk 0:00:05.1]}
78... Rh3+ {[%clk 0:00:31.4]} 79. Kd2 {[%clk 0:00:05.2]} 79... Rh1 {[%clk
0:00:32.3]} 80. Re1 {[%clk 0:00:05.1]} 80... Rh4 {[%clk 0:00:32.2]} 81. Kd3
{[%clk 0:00:05]} 81... Kd5 {[%clk 0:00:32.8]} 82. Re3 {[%clk 0:00:05.5]} 82...
Ra4 {[%clk 0:00:33.1]} 83. Ke2 {[%clk 0:00:05.9]} 83... Kd4 {[%clk 0:00:33.4]}
84. Rd3+ {[%clk 0:00:06.4]} 84... Ke4 {[%clk 0:00:34]} 85. Re3+ {[%clk
0:00:07.3]} 85... Kf4 {[%clk 0:00:34.5]} 86. Rf3+ {[%clk 0:00:07.8]} 86... Kg4
{[%clk 0:00:35.2]} 87. Re3 {[%clk 0:00:08.7]} 87... Rd4 {[%clk 0:00:34.8]} 88.
Rd3 {[%clk 0:00:08.7]} 88... Rb4 {[%clk 0:00:35.5]} 89. Ke3 {[%clk 0:00:08.3]}
89... Kg3 {[%clk 0:00:35]} 90. Rd4 {[%clk 0:00:07.9]} 90... Rb1 {[%clk
0:00:35.7]} 91. Rd3 {[%clk 0:00:08.5]} 91... Rb2 {[%clk 0:00:32.2]} 92. Rd2
{[%clk 0:00:08.5]} 92... Rb8 {[%clk 0:00:32]} 93. Rd4 {[%clk 0:00:08.6]} 93...
Ra8 {[%clk 0:00:31.2]} 94. Ke4 {[%clk 0:00:07.9]} 94... Kg4 {[%clk 0:00:30.8]}
95. Ke5+ {[%clk 0:00:08.1]} 95... Kg5 {[%clk 0:00:31.1]} 96. Ke4 {[%clk
0:00:09]} 96... Ra3 {[%clk 0:00:31]} 97. Rd3 {[%clk 0:00:09.2]} 97... Ra1 {[%clk
0:00:31.6]} 98. Rd4 {[%clk 0:00:10.1]} 98... Rh1 {[%clk 0:00:30.5]} 99. Kd5
{[%clk 0:00:11]} 99... Kf5 {[%clk 0:00:30.8]} 100. Kc4 {[%clk 0:00:11.6]} 100...
Rc1+ {[%clk 0:00:29.7]} 101. Kd3 {[%clk 0:00:11]} 101... Ra1 {[%clk 0:00:29]}
102. Rd5+ {[%clk 0:00:10.7]} 102... Kf4 {[%clk 0:00:29.3]} 103. Rd4+ {[%clk
0:00:11.6]} 103... Kf3 {[%clk 0:00:30]} 104. Kc4 {[%clk 0:00:12]} 104... Ra8
{[%clk 0:00:28.4]} 105. Kd5 {[%clk 0:00:12.1]} 105... Rc8 {[%clk 0:00:27.8]}
106. Rc4 {[%clk 0:00:12.1]} 106... Rb8 {[%clk 0:00:27.7]} 107. Rc3+ {[%clk
0:00:12.1]} 107... Kf4 {[%clk 0:00:28]} 108. Rc4+ {[%clk 0:00:13]} 108... Kf5
{[%clk 0:00:28.7]} 109. Rc3 {[%clk 0:00:13.5]} 109... Rd8+ {[%clk 0:00:28.9]}
110. Kc4 {[%clk 0:00:14]} 110... Ke4 {[%clk 0:00:29.6]} 111. Rc2 {[%clk
0:00:13.6]} 111... Rc8+ {[%clk 0:00:26.2]} 112. Kb3 {[%clk 0:00:13.7]} 112...
Rb8+ {[%clk 0:00:27.1]} 113. Kc3 {[%clk 0:00:13.6]} 113... Ke3 {[%clk
0:00:27.6]} 114. Rh2 {[%clk 0:00:12.7]} 114... Rc8+ {[%clk 0:00:27.8]} 115. Kb4
{[%clk 0:00:13.2]} 115... Rc1 {[%clk 0:00:25]} 116. Rh3+ {[%clk 0:00:13.3]}
116... Kd4 {[%clk 0:00:25.6]} 117. Rh4+ {[%clk 0:00:13.9]} 117... Ke5 {[%clk
0:00:26.3]} 118. Rh5+ {[%clk 0:00:14.8]} 118... Kf6 {[%clk 0:00:26.9]} 119. Rh4
{[%clk 0:00:15.5]} 119... Rb1+ {[%clk 0:00:27.1]} 120. Kc5 {[%clk 0:00:15.5]}
120... Rc1+ {[%clk 0:00:28]} 121. Rc4 {[%clk 0:00:15.6]} 121... Rg1 {[%clk
0:00:28.9]} 122. Rf4+ {[%clk 0:00:15.7]} 122... Ke5 {[%clk 0:00:29.3]} 123. Rf2
{[%clk 0:00:16.6]} 123... Rg5 {[%clk 0:00:29.2]} 124. Kb4 {[%clk 0:00:17]}
124... Kd4 {[%clk 0:00:29.5]} 125. Rd2+ {[%clk 0:00:17.2]} 125... Ke3 {[%clk
0:00:29.9]} 126. Rd8 {[%clk 0:00:18.1]} 126... Rg4+ {[%clk 0:00:30.1]} 127. Kc5
{[%clk 0:00:18.3]} 127... Rg7 {[%clk 0:00:30.5]} 128. Rc8 {[%clk 0:00:18.5]}
1/2-1/2